Cogmind - Beta 16.1 @@@ ROGUE MODE // 2026.02.18 @ 17:35:01 Player: Megaknight51 Result: Destroyed by G-47 Trooper with Particle Gun Performance ------------- Evolutions (0) 0 Regions Visited (1) 200 Robots Destroyed (25) 125 Value Destroyed (398) 398 Prototype IDs (0) 0 Alien Tech Used (0) 0 Bonus (0) 0 TOTAL SCORE: 723 Bonus ------- None Cogmind --------- Core Integrity 0/250 Matter 224/300 Energy 100/100 System Corruption 0% Temperature Warning (329) Movement Core (1350) Ox26 Location -10/Materials Parts ------- > --- POWER (1) -------- (None) > --- PROPULSION (2) --- (None) > --- UTILITY (2) ------ Huge Storage Unit Seismic Detector > --- WEAPON (2) ------- (None) > --- INVENTORY (25) --- Ion Engine Light Ion Engine Wheel Wheel Disposable Heat Sink Disposable Heat Sink Disposable Heat Sink Disposable Heat Sink Small Storage Unit Improved Terrain Scanner Beam Rifle Beam Rifle Beam Rifle Beam Rifle Light EM Pulse Cannon Light EM Pulse Cannon Light EM Pulse Cannon Light Assault Rifle Grenade Launcher Peak State ------------ > --- POWER ------------ Ion Engine > --- PROPULSION ------- Wheel Wheel > --- UTILITY ---------- Huge Storage Unit Seismic Detector > --- WEAPON ----------- Light EM Pulse Cannon Light EM Pulse Cannon > --- INVENTORY -------- Ion Engine Light Ion Engine Wheel Wheel Disposable Heat Sink Disposable Heat Sink Disposable Heat Sink Disposable Heat Sink Small Storage Unit Improved Terrain Scanner Beam Rifle Beam Rifle Beam Rifle Beam Rifle Light EM Pulse Cannon Light EM Pulse Cannon Light Assault Rifle Grenade Launcher [Rating: 12] Favorites ----------- Power Ion Engine Engine Ion Engine Propulsion Wheel Wheel Wheel Utility Seismic Detector Device Seismic Detector Storage Huge Storage Unit Weapon Assault Rifle Energy Cannon Light EM Pulse Cannon Ballistic Gun Assault Rifle Launcher Grenade Launcher Build | -11 -10 ------- Run | Yrd Mat Slots Evolved . | . . Power . | . . Propulsion . | . . Utility . | . . Weapon . | . . Parts Attached 11 | 7 4 Power 1 | 1 . Engine 1 | 1 . Core . | . . Reactor . | . . Propulsion 2 | 2 . Treads . | . . Leg . | . . Wheel 2 | 2 . Hover . | . . Flight . | . . Utility 3 | 2 1 Device 1 | 1 . Storage 2 | 1 1 Processor . | . . Hackware . | . . Protection . | . . Artifact . | . . Weapon 5 | 2 3 Energy Gun . | . . Energy Cannon 2 | . 2 Ballistic Gun 2 | 2 . Ballistic Cannon . | . . Launcher 1 | . 1 Special Weapon . | . . Impact Weapon . | . . Slashing Weapon . | . . Piercing Weapon . | . . Special Melee Weapon . | . . Unidentified Prototypes . | . . Parts Lost 5 | . 5 Power 1 | . 1 Propulsion 2 | . 2 Utility . | . . Weapon 2 | . 2 Highest Loss Streak 5 | . 5 To Critical Strikes . | . . Average Backups 8 | 3 9 Power 1 | . 1 Propulsion 1 | 1 2 Utility 2 | . 2 Weapon 2 | . 3 Tool/Special . | . . Unused Backups 17 | . 17 Power 2 | . 2 Propulsion 2 | . 2 Utility 5 | . 5 Weapon 8 | . 8 Tool/Special . | . . Average Slot Usage (%) 99 | . 99 Engine 14 | . 14 Wheel 27 | . 27 Device 14 | . 14 Storage 14 | . 14 Energy Cannon 5 | . 5 Ballistic Gun 22 | . 22 Peak Build Rating 12 | 7 12 Average Rating 7 | 5 8 On Entrance 3 | . 7 Avg Prop Armor Cover (%) . | . . Naked Turns . | . . Heaviest Build 94 | 15 94 Greatest Support 20 | 20 20 Greatest Overweight (x) 26 | . 26 Average Overweight (x) 2 | . 3 Largest Inventory Capacity 25 | 8 25 Average Capacity 19 | 7 24 Most Carried 19 | 5 19 Average Carried 8 | 4 9 Final Capacity 25 | 8 25 Final Carried 19 | 5 19 Class Distribution -------------------- 100% | Mutant Dominant Class ---------------- Mutant | -10/Materials Resources | -11 -10 ----------- Run | Yrd Mat Matter Collected 546 | 434 112 Remotely . | . . Salvage Created 684 | 321 363 Parts 50 | 27 23 Haulers Intercepted . | . . Recyclers Shooed . | . . Parts Field Recycled . | . . Retrieved Matter . | . . Parts Self-Destructed . | . . Prevented . | . . Parts Restored . | . . Kills | -11 -10 ------- Run | Yrd Mat Combat Hostiles Destroyed 10 | . 10 Guns 3 | . 3 Cannons 3 | . 3 AOE 4 | . 4 Classes Destroyed 7 | 3 4 Worker 2 | 2 . Builder 2 | . 2 Tunneler 9 | 9 . Recycler 1 | 1 . Watcher 1 | . 1 Swarmer 3 | . 3 Grunt 7 | . 7 Best Kill Streak 7 | 5 7 Combat Bots Only 5 | . 5 Max Kills in Single Turn 2 | 1 2 Gunslinging . | . . Exploded 1 | . 1 Melee . | . . Uniques/NPCs Destroyed . | . . Combat | -11 -10 -------- Run | Yrd Mat Hostile Shots Fired 80 | . 80 Missed 26 | . 26 Hits 54 | . 54 Projectile 54 | . 54 Damage Taken 731 | . 731 Core 252 | . 252 Absorbed by Shields . | . . Core Remaining (%) 100 | 100 . Volleys Fired 54 | 29 25 Largest 2 | 2 2 Hottest 112 | 40 112 Shots Fired 108 | 58 50 Gun 82 | 58 24 Cannon 20 | . 20 Launcher 6 | . 6 Special . | . . Kinetic 82 | 58 24 Thermal . | . . Explosive 6 | . 6 Electromagnetic 20 | . 20 Robot Hit Streak 12 | 12 8 Robot Miss Streak 3 | 3 3 Penetration Max . | . . Secondary Targets . | . . Shots Hit Robots 64 | 35 29 Core Hits 32 | 13 19 Critical Kills . | . . Critical Parts Destroyed . | . . Critical Strikes . | . . Melee Attacks . | . . Impact . | . . Slashing . | . . Piercing . | . . Sneak Attacks . | . . Combat Hostiles . | . . Follow-up Attacks . | . . Damage Inflicted 1231 | 352 879 Guns 531 | 352 179 Cannons 309 | . 309 Explosions 391 | . 391 Melee . | . . Ramming . | . . Kinetic 531 | 352 179 Thermal . | . . Explosive 391 | . 391 Electromagnetic 309 | . 309 Impact . | . . Slashing . | . . Piercing . | . . Highest Corruption . | . . Average Corruption . | . . Corruption Purged . | . . Corruption Blocked . | . . Overload Shots . | . . Overflow Damage . | . . Projectiles . | . . Explosions . | . . Melee . | . . Knockbacks . | . . Impact . | . . Kinetic . | . . Secondary . | . . Self-Inflicted Damage 98 | . 98 Shots 4 | . 4 Rammed . | . . Targets Rammed . | . . Kicked . | . . Crushed . | . . Highest Temperature 339 | . 339 Average Temperature 107 | . 107 Received Heat Transfer 303 | . 303 Effects 2 | . 2 Matter Decay 1 | . 1 Damage (minor) 1 | . 1 Siege Activations . | . . Martial Activations . | . . Shielding Activations . | . . Robots Disrupted . | . . Combat Hostiles . | . . Robots Corrupted . | . . Combat Hostiles . | . . Parts Fried 4 | . 4 Impact Corruptions . | . . Robots Melted . | . . Combat Hostiles . | . . Parts Melted . | . . Heat Transferred . | . . Parts Sabotaged . | . . Parts Stolen . | . . Parts Stripped . | . . Power Chain Reactions . | . . Alert | -11 -10 ------- Run | Yrd Mat Maximum Alert Level 1 | . 1 Low Security (%) 99 | 100 99 Level 1 . | . . Level 2 . | . . Level 3 . | . . Level 4 . | . . Level 5 . | . . High Security . | . . Max Security . | . . Peak Influence 200 | 10 200 Initial . | . . Average 12 | 1 17 Influence Increases 413 | 60 353 Destroy 0b10 Robot/C 200 | . 200 Destroy 0b10 Robot/NC 75 | 60 15 Destroy Leader 32 | . 32 Disable Machine 30 | . 30 Destroy Structure 16 | . 16 Partial Spotted 15 | . 15 Lose Combat Pursuer 45 | . 45 Influence Decreases 233 | 60 173 Time Decay 183 | 60 123 Lost Part 50 | . 50 Squads Dispatched 3 | . 3 Investigation 2 | . 2 Extermination . | . . Reinforcement 1 | . 1 Assault . | . . Garrison . | . . Intercept . | . . Searches Triggered . | . . Construction Impeded . | . . Haulers Reinforced . | . . Active Scanning Responses . | . . Cargo Convoy Interrupts . | . . Stealth | -11 -10 --------- Run | Yrd Mat Distress Signals 1 | . 1 Communications Jammed . | . . Distress Signals . | . . Times Spotted 20 | . 20 Peak Tracking Total 12 | . 12 Tactical Retreats 2 | . 2 Traps | -11 -10 ------- Run | Yrd Mat Traps Triggered 2 | . 2 Indirectly . | . . Trap Hack Attempts . | . . Triggered . | . . Disarmed . | . . Reprogrammed . | . . Reused . | . . Traps Extracted . | . . Installed . | . . Triggered . | . . Machines | -11 -10 ---------- Run | Yrd Mat Machines Disabled 2 | . 2 Max in Single Turn 1 | . 1 Machines Repaired . | . . Machines Dismantled . | . . Machines Sabotaged . | . . Overloaded Fab Kills . | . . Hacking | -11 -10 --------- Run | Yrd Mat Machines Accessed 1 | . 1 Terminals 1 | . 1 Fabricators . | . . Repair Stations . | . . Recycling Units . | . . Scanalyzers . | . . Garrison Access . | . . Total Hacks 2 | . 2 Successful 1 | . 1 Failed 1 | . 1 Catastrophic . | . . Database Lockouts . | . . Manual 1 | . 1 Terminals 2 | . 2 Fabricators . | . . Repair Stations . | . . Recycling Units . | . . Scanalyzers . | . . Garrison Access . | . . Terminal Hacks . | . . Fabricator Hacks . | . . Repair Station Hacks . | . . Recycling Unit Hacks . | . . Scanalyzer . | . . Garrison Access Hacks . | . . Unauthorized Hacks 1 | . 1 Terminals 1 | . 1 Botnet 1 | . 1 Fabricators . | . . Repair Stations . | . . Recycling Units . | . . Scanalyzers . | . . Garrison Access . | . . Data Cores Recovered . | . . Used . | . . Hacking Detections 1 | . 1 Full Trace Events . | . . Feedback Events . | . . Feedback Blocked . | . . Robot Schematics Acquired . | . . Robots Built . | . . Authchips . | . . Time . | . . Total Robot Build Rating . | . . Part Schematics Acquired . | . . Parts Built . | . . Authchips . | . . Time . | . . Total Part Build Rating . | . . Part Studies Acquired . | . . Parts Repaired . | . . Time . | . . Parts Recycled . | . . Recycled Matter . | . . Retrieved Matter . | . . Retrieved Components . | . . Parts Scanalyzed . | . . Part Schematics Acquired . | . . Parts Damaged . | . . Bothacking | -11 -10 ------------ Run | Yrd Mat Used RIF Installer . | . . Robots Hacked . | . . Non-combat . | . . Combat . | . . Robot Hacks Applied . | . . Relay Couplers Released . | . . Fabnet Peak Effective % . | . . Robots Rewired . | . . Allies Hacked . | . . Hacks Repelled . | . . Allies | -11 -10 -------- Run | Yrd Mat Total Allies . | . . Largest Group . | . . Highest-Rated Group . | . . Highest-Rated Ally . | . . Total Orders . | . . Ally Attacks . | . . Total Damage . | . . Kills . | . . Allies Corrupted . | . . Allies Melted . | . . Intel | -11 -10 ------- Run | Yrd Mat Active Infowar (turns) 692 | 3 689 Seismic 692 | 3 689 Robot Analysis Total . | . . Derelict Logs Recovered . | . . Drone Launches . | . . Drone Recoveries . | . . Exploration | -11 -10 ------------- Run | Yrd Mat Turns Passed 955 | 266 689 Spaces Moved 362 | 115 247 Core 6 | 5 1 Treads . | . . Legs . | . . Wheels 356 | 110 246 Hover . | . . Flight . | . . Fastest Speed 50 | 50 80 Average Speed 121 | 78 140 Slowest Speed 1350 | 80 1350 Overloaded Moves . | . . Propulsion Burnouts . | . . Robots Hopped . | . . Potential Cave-ins . | . . Cave-ins Triggered . | . . Exploration Rate (%) 25 | 4 47 Regions Visited 1 Branch Regions . Pre-discovered Areas . | . . Known Exits Taken . | . . Unknown Exits Taken 1 | 1 . Scrap Searched . | . . Spaces Dug . | . . Terrain Destroyed 14 | . 14 Melee . | . . Projectile . | . . AOE 14 | . 14 Terrain Rammed . | . . Walls Destroyed . | . . Machines Disabled . | . . Actions | -11 -10 --------- Run | Yrd Mat Total 776 | 228 548 Wait 332 | 73 259 Move 361 | 114 247 Hop . | . . Pick Up 18 | 5 13 Fast Attach 7 | 7 . Attach . | . . Detach . | . . Swap 4 | . 4 Drop . | . . Fire 54 | 29 25 Melee . | . . Ram . | . . Kick . | . . Crush . | . . Escape Stasis . | . . Rewire . | . . Trap . | . . Miscellaneous . | . . Route ------- -11/Scrapyard -10/Materials (discovered 2 exits: [*Mat] / [*Sub]) History --------- Turn | Location | Event 9 | -11/Scrapyard | Discovered new exit (range 16) 267 | -11/Scrapyard | Entered Materials 302 | -10/Materials | Build established: Mutant 507 | -10/Materials | Discovered new exit (range 14) 729 | -10/Materials | Discovered new exit (range 9) 867 | -10/Materials | Derelicts attacked the area 941 | -10/Materials | Core integrity fell below 50% 951 | -10/Materials | Core integrity fell below 20% 956 | -10/Materials | Destroyed by G-47 Trooper with Particle Gun Last Messages --------------- M005. 00914_ Acquired Grenade Launcher. 00930_ K-01 Serf cleans the Matter Pump. 00935_ Wheel destroyed. 00937_ S-10 Pest destroyed. 00940_ G-34 Mercenary destroyed. 00944_ T-07 Excavator destroyed. 00946_ Matter Pump disabled. 00946_ G-34 Mercenary destroyed. 00946_ U-05 Engineer destroyed. 00949_ S-10 Pest destroyed. 00949_ K-01 Serf collects debris. 00952_ W-16 Scout destroyed. 00952_ S-10 Pest destroyed. 00952_ Grenade Launcher destroyed. 00953_ K-01 Serf collects debris. 00954_ Overheating: Matter decay (-31). 00954_ Lgt. EM Pulse Cannon destroyed. 00954_ Ion Engine destroyed. 00956_ Overheating: Seismic Detector damaged (-3). Map ----- +----------------------------------------------------+ | ???????????????????????????????????????????? | | ???????????????????????????????????????????? | | ???????????????????????????????????????????? | | ???????????????????????????????????????????? | | ???????????????????????????????????????????? | | ???????????????????????????????????????????? | | ???????????????????????????????????????????? | | ???????????????????????????????????????????? | | ???????????????????????????????????????????? | | ???????????????????????????????????????????? | | ?????????????????????? ????? ????????????? | | ???????????????????! ?###r ###?????????? | | ????????????????? ? =%% = #???????? | | ?????????????????^ ? [= #???????? | | ?????????????????? ? #???????? | | ?????????????????? u ? g #???????? | | ????????????? ???"" # = +???????? | | ?????????????# """ # !%* ????????? | | ?????????????# """ ! g# | ?????????? | | ?????????????? !% # ??????????? | | ?????????????? | g ####????????? | | ?????????????# "" %[ #????????? | | ?????????????# " =%g g* """#????????? | | ??????????#### "" ! """#????????? | | ????????? [ """#????????? | | ???????? k @[ #????????? | | ??????? k """#????????? | | #??????????#####+#### """#????????? | | #???????????# """ # """#????????? | | #???????????# "R" + # #????????? | | #???????????# ! *" ## ##########????????? | | #???????????# [ ## #?????????????????? | | #???????????# ## ##?###????????????? | | #???????????# """ # ###T###??????????? | | #???????????# ! """ / %[ #??????????? | | #???????????# """ # ##### #??????????? | | #???????????# #####???#%#??????????? | | #???????????####+#####???????# #####??????? | | #???????????#?## #???????????# #??????? | | #??????????##!? #T########### #??????? | | #???????????! ? #??????? | | ##??????????? #???#### #??????? | | #??????????? ######## #??????? | | #???????????? # """ + #??????? | | +????????????? # """ ###+##+#####??????? | | #?????????????# # """ # T #???????? | | #????????###### # # #???????? | | ##????????+ + ! # #???????? | | #??############# # # = #???????? | | #??# = ### ##################???????? | +----------------------------------------------------+ Best States ------------- Heat Dissipation 25 Energy Generation 10 Energy Capacity 250 Matter Stores 300 Matter Capacity 300 Sight Range 16 Terrain Scan Density 10 Evasion (%) 44 Item Schematics ----------------- None Robot Schematics ------------------ None Fabricated ------------ Nothing Repaired ---------- Nothing Studied --------- None Alien Tech Used ----------------- None Achievements -------------- None Challenges ------------ None Game ------ Seed CloakingMomentumInsulator Manual? 0 Play Time 00:06:51 Cumulative 89.3 hours Start 2026.02.18 @ 17:31:06 End 2026.02.18 @ 17:35:01 Sessions 1 Manual Loads 0 Difficulty Rogue Special Mode None Game No. 185 Rogue 185 Adventurer 0 Explorer 0 Win Type - Total 1 Types 1/0/0/0/0/0/0/0/0/0 Lore% 50 Gallery% 39 Achievement% 39 Wizard Run 0 Options --------- Layout 0 ASCII 0 Keyboard 1 Movement Arrows Keybinds 0 Fullscreen 1 Font 18/Smallcaps Map View 76x50 Zoom Use 44% Tactical HUD 1 Map Filters NONE Filters NONE Steam 1 RUN: 5b90a714-56fb-41b8-8838-8adc12c0d877